[Event "Late-Titled-Tuesday-Blitz-June-18-2024"]
[Site "Chess.com"]
[Date "2024.06.18"]
[Round "4"]
[White "esskeettit"]
[Black "Good_Knight_Kiss"]
[Result "0-1"]
[WhiteElo "2511"]
[BlackElo "2381"]
[TimeControl "180+1"]
[EndTime "14:41:38 PDT"]
[Termination "Good_Knight_Kiss won on time"]

1. d4 {[%clk 0:03:00.9]} 1... Nf6 {[%clk 0:02:59.5]} 2. c4 {[%clk 0:03:01.4]}
2... g6 {[%clk 0:02:59.9]} 3. Nc3 {[%clk 0:03:01.5]} 3... Bg7 {[%clk 0:03:00.5]}
4. e4 {[%clk 0:03:01.4]} 4... d6 {[%clk 0:03:01.1]} 5. Nf3 {[%clk 0:03:01.7]}
5... O-O {[%clk 0:03:01.3]} 6. Be2 {[%clk 0:03:02.2]} 6... e5 {[%clk 0:03:00.9]}
7. O-O {[%clk 0:03:00.5]} 7... Nc6 {[%clk 0:03:00.6]} 8. d5 {[%clk 0:02:58.9]}
8... Ne7 {[%clk 0:03:00.9]} 9. b4 {[%clk 0:02:58.9]} 9... a5 {[%clk 0:03:00.7]}
10. Ba3 {[%clk 0:02:58.5]} 10... axb4 {[%clk 0:03:00.9]} 11. Bxb4 {[%clk
0:02:59.2]} 11... Nd7 {[%clk 0:03:00.6]} 12. a4 {[%clk 0:02:58.9]} 12... Bh6
{[%clk 0:03:00.4]} 13. a5 {[%clk 0:02:51.4]} 13... f5 {[%clk 0:03:00.1]} 14.
exf5 {[%clk 0:02:42.1]} 14... gxf5 {[%clk 0:02:57.1]} 15. Qb3 {[%clk 0:02:16.3]}
15... Kh8 {[%clk 0:02:50.6]} 16. Nb5 {[%clk 0:02:01]} 16... Ng6 {[%clk
0:02:43.9]} 17. g3 {[%clk 0:01:38.4]} 17... Rg8 {[%clk 0:02:36.1]} 18. Kh1
{[%clk 0:01:33.4]} 18... Nf6 {[%clk 0:02:04.6]} 19. Bc3 {[%clk 0:01:16.5]} 19...
Ne4 {[%clk 0:02:03.1]} 20. Bb2 {[%clk 0:01:16.3]} 20... c6 {[%clk 0:01:54]} 21.
Nc3 {[%clk 0:01:00.4]} 21... Nxc3 {[%clk 0:01:49.2]} 22. Bxc3 {[%clk 0:01:01.3]}
22... cxd5 {[%clk 0:01:45.6]} 23. cxd5 {[%clk 0:01:02.2]} 23... Qf6 {[%clk
0:01:25.4]} 24. Nd2 {[%clk 0:00:43.7]} 24... Ne7 {[%clk 0:01:11.7]} 25. f4
{[%clk 0:00:41.1]} 25... Bg7 {[%clk 0:01:06.3]} 26. Nc4 {[%clk 0:00:35.3]} 26...
Nxd5 {[%clk 0:00:47.2]} 27. Bb2 {[%clk 0:00:35.3]} 27... Qe7 {[%clk 0:00:38.5]}
28. Rad1 {[%clk 0:00:24.6]} 28... Be6 {[%clk 0:00:33.2]} 29. Bf3 {[%clk
0:00:19.1]} 29... Ne3 {[%clk 0:00:22.8]} 30. Qxe3 {[%clk 0:00:18.3]} 30... Bxc4
{[%clk 0:00:22.8]} 31. Rfe1 {[%clk 0:00:17.3]} 31... e4 {[%clk 0:00:21.9]} 32.
Bxg7+ {[%clk 0:00:13.4]} 32... Qxg7 {[%clk 0:00:22.8]} 33. Bh5 {[%clk
0:00:08.4]} 33... d5 {[%clk 0:00:22.1]} 34. Qb6 {[%clk 0:00:03]} 34... Ra6
{[%clk 0:00:19.7]} 35. Qb4 {[%clk 0:00:01.9]} 35... Rga8 {[%clk 0:00:17]} 0-1

[Event "Late-Titled-Tuesday-Blitz-June-18-2024"]
[Site "Chess.com"]
[Date "2024.06.18"]
[Round "4"]
[White "Pachonpower"]
[Black "KamilaHryshchenko"]
[Result "0-1"]
[WhiteElo "2434"]
[BlackElo "2148"]
[TimeControl "180+1"]
[EndTime "14:41:40 PDT"]
[Termination "KamilaHryshchenko won by checkmate"]

1. e4 {[%clk 0:03:00.9]} 1... d6 {[%clk 0:02:56.1]} 2. d4 {[%clk 0:02:55.8]}
2... g6 {[%clk 0:02:55.8]} 3. Nc3 {[%clk 0:02:56.2]} 3... Bg7 {[%clk 0:02:54.9]}
4. Be3 {[%clk 0:02:56.8]} 4... c6 {[%clk 0:02:47.5]} 5. Qd2 {[%clk 0:02:55.8]}
5... b5 {[%clk 0:02:47]} 6. f3 {[%clk 0:02:54]} 6... Nd7 {[%clk 0:02:46.6]} 7.
Nge2 {[%clk 0:02:53.5]} 7... Nb6 {[%clk 0:02:46.2]} 8. Ng3 {[%clk 0:02:52.1]}
8... h5 {[%clk 0:02:45.7]} 9. h4 {[%clk 0:02:51.7]} 9... Nf6 {[%clk 0:02:43.4]}
10. O-O-O {[%clk 0:02:50.2]} 10... b4 {[%clk 0:02:31.4]} 11. Nb1 {[%clk
0:02:45]} 11... a5 {[%clk 0:02:31.7]} 12. Bg5 {[%clk 0:02:43.6]} 12... Qc7
{[%clk 0:02:26.6]} 13. e5 {[%clk 0:02:43.1]} 13... Nfd5 {[%clk 0:02:12.8]} 14.
exd6 {[%clk 0:02:40.2]} 14... Qxd6 {[%clk 0:02:08.3]} 15. Re1 {[%clk 0:02:39.8]}
15... O-O {[%clk 0:01:41.9]} 16. Ne4 {[%clk 0:02:32.8]} 16... Qc7 {[%clk
0:01:40.9]} 17. Bh6 {[%clk 0:02:33.1]} 17... e5 {[%clk 0:01:20.9]} 18. Bxg7
{[%clk 0:02:19.8]} 18... Kxg7 {[%clk 0:01:20.5]} 19. g4 {[%clk 0:02:20.5]} 19...
Rh8 {[%clk 0:01:20.1]} 20. Be2 {[%clk 0:02:14.3]} 20... Be6 {[%clk 0:01:19.4]}
21. gxh5 {[%clk 0:02:10.7]} 21... Rxh5 {[%clk 0:01:18.2]} 22. f4 {[%clk
0:02:11.1]} 22... Nxf4 {[%clk 0:01:11.2]} 23. Bxh5 {[%clk 0:02:09.9]} 23... Nxh5
{[%clk 0:01:12.1]} 24. Ng5 {[%clk 0:02:05.7]} 24... Bxa2 {[%clk 0:01:09.3]} 25.
Rhg1 {[%clk 0:01:59.4]} 25... b3 {[%clk 0:01:04.6]} 26. Nc3 {[%clk 0:01:54.2]}
26... a4 {[%clk 0:00:48.6]} 27. dxe5 {[%clk 0:01:40.7]} 27... a3 {[%clk
0:00:47.8]} 28. e6 {[%clk 0:01:40.5]} 28... axb2+ {[%clk 0:00:45.6]} 29. Kxb2
{[%clk 0:01:40.3]} 29... Nc4+ {[%clk 0:00:45.3]} 30. Kc1 {[%clk 0:01:38.4]}
30... b2+ {[%clk 0:00:38]} 31. Kd1 {[%clk 0:01:32.6]} 31... Nxd2 {[%clk
0:00:38]} 32. Kxd2 {[%clk 0:01:33.5]} 32... Rd8+ {[%clk 0:00:35]} 33. Ke2 {[%clk
0:01:29.3]} 33... Bc4+ {[%clk 0:00:34.4]} 34. Kf2 {[%clk 0:01:25.5]} 34... Qf4+
{[%clk 0:00:32.7]} 35. Nf3 {[%clk 0:01:23.9]} 35... Rd2+ {[%clk 0:00:24.4]} 36.
Ne2 {[%clk 0:01:23.7]} 36... Bxe2 {[%clk 0:00:22.3]} 37. Rxe2 {[%clk 0:01:23.6]}
37... Rxe2+ {[%clk 0:00:20.2]} 38. Kxe2 {[%clk 0:01:24.5]} 38... fxe6 {[%clk
0:00:16.8]} 39. Rb1 {[%clk 0:01:22.6]} 39... Qb4 {[%clk 0:00:15.8]} 40. Ng5
{[%clk 0:01:21.2]} 40... Nf4+ {[%clk 0:00:15.5]} 41. Ke3 {[%clk 0:01:20.7]}
41... e5 {[%clk 0:00:15.4]} 42. Ne4 {[%clk 0:01:16.9]} 42... Qd4+ {[%clk
0:00:15.2]} 43. Kf3 {[%clk 0:01:17.1]} 43... Kf8 {[%clk 0:00:10.8]} 44. Nf2
{[%clk 0:01:08.4]} 44... Ke7 {[%clk 0:00:07.7]} 45. Ne4 {[%clk 0:01:03.3]} 45...
Nd5 {[%clk 0:00:07.3]} 46. Ng5 {[%clk 0:00:59.1]} 46... Nc3 {[%clk 0:00:07.1]}
47. Rxb2 {[%clk 0:00:57.8]} 47... Qf4+ {[%clk 0:00:06.2]} 48. Kg2 {[%clk
0:00:55.5]} 48... Qxh4 {[%clk 0:00:05.1]} 49. Nf3 {[%clk 0:00:53.5]} 49... Qg4+
{[%clk 0:00:04.5]} 50. Kf2 {[%clk 0:00:54.1]} 50... Nd1+ {[%clk 0:00:04.6]} 51.
Ke2 {[%clk 0:00:53.5]} 51... Nxb2 {[%clk 0:00:05.5]} 52. Ke3 {[%clk 0:00:51.2]}
52... Qf4+ {[%clk 0:00:05.6]} 53. Ke2 {[%clk 0:00:51.2]} 53... Nc4 {[%clk
0:00:06.5]} 54. Ne1 {[%clk 0:00:51]} 54... e4 {[%clk 0:00:06.8]} 55. c3 {[%clk
0:00:50.7]} 55... Qe3+ {[%clk 0:00:07.2]} 56. Kd1 {[%clk 0:00:51]} 56... Qd2#
{[%clk 0:00:07.7]} 0-1

[Event "Late-Titled-Tuesday-Blitz-June-18-2024"]
[Site "Chess.com"]
[Date "2024.06.18"]
[Round "4"]
[White "EliteChess0967"]
[Black "JAN2404"]
[Result "1-0"]
[WhiteElo "2392"]
[BlackElo "2072"]
[TimeControl "180+1"]
[EndTime "14:41:40 PDT"]
[Termination "EliteChess0967 won on time"]

1. d4 {[%clk 0:03:00.1]} 1... Nf6 {[%clk 0:02:58.5]} 2. Nf3 {[%clk 0:03:00.2]}
2... g6 {[%clk 0:02:56.9]} 3. g3 {[%clk 0:02:59.5]} 3... Bg7 {[%clk 0:02:57]} 4.
Bg2 {[%clk 0:03:00.4]} 4... O-O {[%clk 0:02:56.5]} 5. O-O {[%clk 0:03:01.1]}
5... d6 {[%clk 0:02:57]} 6. b3 {[%clk 0:03:01.8]} 6... c6 {[%clk 0:02:55.8]} 7.
Bb2 {[%clk 0:03:02.3]} 7... Bf5 {[%clk 0:02:55.6]} 8. c4 {[%clk 0:03:00]} 8...
d5 {[%clk 0:02:48.4]} 9. Nc3 {[%clk 0:02:55.8]} 9... Re8 {[%clk 0:02:41.8]} 10.
e3 {[%clk 0:02:55.4]} 10... Na6 {[%clk 0:02:38.5]} 11. Qe2 {[%clk 0:02:45.3]}
11... Ne4 {[%clk 0:02:17.2]} 12. Rfd1 {[%clk 0:02:39.6]} 12... Qa5 {[%clk
0:02:08.5]} 13. Nxe4 {[%clk 0:02:34.7]} 13... Bxe4 {[%clk 0:02:08.3]} 14. a3
{[%clk 0:02:21.7]} 14... b5 {[%clk 0:01:51.2]} 15. b4 {[%clk 0:01:45]} 15... Qb6
{[%clk 0:01:43.2]} 16. cxb5 {[%clk 0:01:45.2]} 16... cxb5 {[%clk 0:01:41.1]} 17.
Rdc1 {[%clk 0:01:43.1]} 17... Rac8 {[%clk 0:01:39.4]} 18. Bf1 {[%clk 0:01:39.9]}
18... h5 {[%clk 0:01:04.3]} 19. Nd2 {[%clk 0:01:38.1]} 19... Bc2 {[%clk
0:00:48.5]} 20. Qxb5 {[%clk 0:01:31.8]} 20... Nb8 {[%clk 0:00:34.5]} 21. Nb1
{[%clk 0:01:12]} 21... Qd6 {[%clk 0:00:18.3]} 22. Nc3 {[%clk 0:01:09.6]} 22...
Be4 {[%clk 0:00:18.6]} 23. Qe2 {[%clk 0:00:51.2]} 23... e5 {[%clk 0:00:17.4]}
24. Nxe4 {[%clk 0:00:49]} 24... dxe4 {[%clk 0:00:17.6]} 25. dxe5 {[%clk
0:00:49.2]} 25... Bxe5 {[%clk 0:00:17.2]} 26. Bxe5 {[%clk 0:00:39.4]} 26... Qxe5
{[%clk 0:00:17.7]} 27. a4 {[%clk 0:00:36.7]} 27... Nc6 {[%clk 0:00:17.5]} 28.
Qc4 {[%clk 0:00:28.1]} 28... Re7 {[%clk 0:00:14.3]} 29. b5 {[%clk 0:00:27.2]}
29... Rec7 {[%clk 0:00:09.9]} 30. Qc3 {[%clk 0:00:18.8]} 30... Qxc3 {[%clk
0:00:04]} 31. Rxc3 {[%clk 0:00:18.9]} 31... Nb4 {[%clk 0:00:04.7]} 32. Rxc7
{[%clk 0:00:18.3]} 32... Rxc7 {[%clk 0:00:05]} 33. a5 {[%clk 0:00:17.3]} 33...
Rb7 {[%clk 0:00:04.2]} 34. Rb1 {[%clk 0:00:16]} 34... Nc2 {[%clk 0:00:02.6]} 35.
Rb3 {[%clk 0:00:12.9]} 35... Ne1 {[%clk 0:00:01.5]} 36. Be2 {[%clk 0:00:12.8]}
1-0

[Event "Late-Titled-Tuesday-Blitz-June-18-2024"]
[Site "Chess.com"]
[Date "2024.06.18"]
[Round "4"]
[White "Lupul_Cenusiu"]
[Black "RZ0"]
[Result "0-1"]
[WhiteElo "2679"]
[BlackElo "2541"]
[TimeControl "180+1"]
[EndTime "14:41:44 PDT"]
[Termination "RZ0 won on time"]

1. e4 {[%clk 0:03:00.9]} 1... c5 {[%clk 0:02:59.5]} 2. Nc3 {[%clk 0:03:01.1]}
2... a6 {[%clk 0:02:57.1]} 3. g3 {[%clk 0:02:59.6]} 3... b5 {[%clk 0:02:56.4]}
4. Bg2 {[%clk 0:02:59.5]} 4... Bb7 {[%clk 0:02:57]} 5. d3 {[%clk 0:02:59.6]}
5... e6 {[%clk 0:02:56.2]} 6. Nh3 {[%clk 0:02:59.6]} 6... d5 {[%clk 0:02:54.2]}
7. exd5 {[%clk 0:02:59.6]} 7... Nf6 {[%clk 0:02:53.7]} 8. O-O {[%clk 0:02:50.5]}
8... b4 {[%clk 0:02:52]} 9. Ne4 {[%clk 0:01:56.1]} 9... Nxd5 {[%clk 0:02:45.1]}
10. Bg5 {[%clk 0:01:44.9]} 10... Qb6 {[%clk 0:02:28.9]} 11. Nd2 {[%clk
0:01:30.6]} 11... h6 {[%clk 0:02:25]} 12. Nc4 {[%clk 0:01:30.3]} 12... Qc7
{[%clk 0:02:24.8]} 13. Bd2 {[%clk 0:01:16.5]} 13... Be7 {[%clk 0:02:23.3]} 14.
Nf4 {[%clk 0:01:14.8]} 14... Nf6 {[%clk 0:02:11.3]} 15. Nh5 {[%clk 0:00:56.1]}
15... Bxg2 {[%clk 0:02:07.4]} 16. Kxg2 {[%clk 0:00:55.2]} 16... Nxh5 {[%clk
0:02:04.3]} 17. Qxh5 {[%clk 0:00:54.7]} 17... Nd7 {[%clk 0:02:04.8]} 18. a3
{[%clk 0:00:40.7]} 18... O-O {[%clk 0:01:47.5]} 19. axb4 {[%clk 0:00:38.5]}
19... cxb4 {[%clk 0:01:47.1]} 20. Qf3 {[%clk 0:00:34.4]} 20... b3 {[%clk
0:01:23.1]} 21. cxb3 {[%clk 0:00:28.1]} 21... Rab8 {[%clk 0:01:05.6]} 22. Rxa6
{[%clk 0:00:22.1]} 22... Rxb3 {[%clk 0:01:04.6]} 23. Rfa1 {[%clk 0:00:20]} 23...
Bc5 {[%clk 0:00:59.7]} 24. Rc6 {[%clk 0:00:17]} 24... Qb8 {[%clk 0:00:54.6]} 25.
Bc3 {[%clk 0:00:17.2]} 25... Bb4 {[%clk 0:00:41.5]} 26. Bxb4 {[%clk 0:00:12.4]}
26... Qxb4 {[%clk 0:00:40]} 27. Rc7 {[%clk 0:00:09]} 27... Nf6 {[%clk
0:00:38.5]} 28. Raa7 {[%clk 0:00:07.9]} 28... Qe1 {[%clk 0:00:29.1]} 29. h3
{[%clk 0:00:07]} 29... Qb1 {[%clk 0:00:26.3]} 30. Ne5 {[%clk 0:00:05.5]} 30...
Rxb2 {[%clk 0:00:25.1]} 31. Nxf7 {[%clk 0:00:04.7]} 31... Nd5 {[%clk 0:00:23.8]}
32. Rd7 {[%clk 0:00:03.7]} 32... Kh7 {[%clk 0:00:18]} 33. Qg4 {[%clk 0:00:03.5]}
33... Qxd3 {[%clk 0:00:16.1]} 34. Ne5 {[%clk 0:00:02]} 34... Rbxf2+ {[%clk
0:00:15.6]} 0-1

[Event "Late-Titled-Tuesday-Blitz-June-18-2024"]
[Site "Chess.com"]
[Date "2024.06.18"]
[Round "4"]
[White "Romkachess"]
[Black "Smiechu"]
[Result "1-0"]
[WhiteElo "2500"]
[BlackElo "2328"]
[TimeControl "180+1"]
[EndTime "14:41:46 PDT"]
[Termination "Romkachess won by resignation"]

1. e4 {[%clk 0:03:00.9]} 1... c5 {[%clk 0:02:59.5]} 2. Nf3 {[%clk 0:02:50.5]}
2... g6 {[%clk 0:02:59.4]} 3. d4 {[%clk 0:02:47.8]} 3... cxd4 {[%clk 0:03:00.3]}
4. Qxd4 {[%clk 0:02:48.3]} 4... Nf6 {[%clk 0:02:59.7]} 5. e5 {[%clk 0:02:48.4]}
5... Nc6 {[%clk 0:03:00.2]} 6. Qa4 {[%clk 0:02:47.6]} 6... Nd5 {[%clk
0:03:00.7]} 7. Qb3 {[%clk 0:02:47.3]} 7... Nc7 {[%clk 0:02:32.5]} 8. Bf4 {[%clk
0:02:45.7]} 8... Bg7 {[%clk 0:02:31.2]} 9. Bc4 {[%clk 0:02:37]} 9... Ne6 {[%clk
0:02:28.2]} 10. Bxe6 {[%clk 0:02:35.6]} 10... dxe6 {[%clk 0:02:28.4]} 11. Nc3
{[%clk 0:02:34.8]} 11... O-O {[%clk 0:02:27.9]} 12. h4 {[%clk 0:02:27.8]} 12...
h5 {[%clk 0:02:21.9]} 13. O-O {[%clk 0:02:22.9]} 13... Qc7 {[%clk 0:02:08.3]}
14. Rfe1 {[%clk 0:02:20.2]} 14... a6 {[%clk 0:02:06.3]} 15. a4 {[%clk
0:02:19.8]} 15... b6 {[%clk 0:02:05.6]} 16. Ne4 {[%clk 0:02:14.5]} 16... Bb7
{[%clk 0:02:03.8]} 17. Rad1 {[%clk 0:02:08.2]} 17... Rfd8 {[%clk 0:02:03.2]} 18.
Qe3 {[%clk 0:02:05.2]} 18... Rd5 {[%clk 0:01:58.9]} 19. Rxd5 {[%clk 0:01:49.9]}
19... exd5 {[%clk 0:01:58.6]} 20. e6 {[%clk 0:01:44.1]} 20... Qc8 {[%clk
0:01:16.8]} 21. exf7+ {[%clk 0:01:41.5]} 21... Kxf7 {[%clk 0:01:16.7]} 22. Neg5+
{[%clk 0:01:37.2]} 22... Kf8 {[%clk 0:01:16.3]} 23. Ne6+ {[%clk 0:01:31.6]}
23... Kg8 {[%clk 0:01:13.7]} 24. Qd3 {[%clk 0:01:21.1]} 24... Qe8 {[%clk
0:01:07.4]} 25. Nc7 {[%clk 0:01:10.2]} 25... Qf7 {[%clk 0:01:07.4]} 26. Nxa8
{[%clk 0:01:04.6]} 26... Bxa8 {[%clk 0:01:02.1]} 27. Be5 {[%clk 0:00:43.2]}
27... Bb7 {[%clk 0:00:43.1]} 28. Bxg7 {[%clk 0:00:35.2]} 28... Kxg7 {[%clk
0:00:43.1]} 29. Ng5 {[%clk 0:00:34.3]} 29... Qf5 {[%clk 0:00:38.5]} 30. Qxf5
{[%clk 0:00:23.9]} 30... gxf5 {[%clk 0:00:38.6]} 31. Re6 {[%clk 0:00:24.3]}
31... b5 {[%clk 0:00:29.9]} 32. axb5 {[%clk 0:00:22.6]} 32... axb5 {[%clk
0:00:30.8]} 33. c3 {[%clk 0:00:22.6]} 33... Ba8 {[%clk 0:00:27.2]} 34. f4 {[%clk
0:00:18.9]} 34... Bb7 {[%clk 0:00:16.4]} 35. Kf2 {[%clk 0:00:19]} 35... Ba8
{[%clk 0:00:14.8]} 36. Ke3 {[%clk 0:00:19.1]} 36... Bb7 {[%clk 0:00:14.2]} 37.
Nf3 {[%clk 0:00:19.6]} 37... Ba8 {[%clk 0:00:11.7]} 38. Nd4 {[%clk 0:00:19.7]}
38... Kf7 {[%clk 0:00:08.7]} 39. Rxc6 {[%clk 0:00:18.4]} 39... Bxc6 {[%clk
0:00:08.1]} 40. Nxc6 {[%clk 0:00:19.3]} 40... Kf6 {[%clk 0:00:07.5]} 41. Ne5
{[%clk 0:00:18.6]} 41... Ke6 {[%clk 0:00:07.9]} 42. Kd4 {[%clk 0:00:19.3]} 42...
Kd6 {[%clk 0:00:08.1]} 43. b4 {[%clk 0:00:20]} 43... e6 {[%clk 0:00:07]} 44. g3
{[%clk 0:00:20.1]} 1-0

[Event "Late-Titled-Tuesday-Blitz-June-18-2024"]
[Site "Chess.com"]
[Date "2024.06.18"]
[Round "4"]
[White "rychessmaster1"]
[Black "Slovineanu"]
[Result "1-0"]
[WhiteElo "2748"]
[BlackElo "2554"]
[TimeControl "180+1"]
[EndTime "14:41:47 PDT"]
[Termination "rychessmaster1 won on time"]

1. d4 {[%clk 0:03:00.9]} 1... Nf6 {[%clk 0:02:57.9]} 2. Nc3 {[%clk 0:03:01.2]}
2... d5 {[%clk 0:02:56.3]} 3. Bf4 {[%clk 0:03:01.5]} 3... a6 {[%clk 0:02:54.4]}
4. e3 {[%clk 0:03:01.7]} 4... e6 {[%clk 0:02:53]} 5. Nf3 {[%clk 0:03:01.2]} 5...
c5 {[%clk 0:02:52.2]} 6. dxc5 {[%clk 0:03:01.6]} 6... Bxc5 {[%clk 0:02:51.8]} 7.
Bd3 {[%clk 0:03:02]} 7... Nc6 {[%clk 0:02:50.4]} 8. O-O {[%clk 0:03:02.2]} 8...
O-O {[%clk 0:02:50.2]} 9. e4 {[%clk 0:03:02.7]} 9... dxe4 {[%clk 0:02:45.2]} 10.
Nxe4 {[%clk 0:03:03.6]} 10... Be7 {[%clk 0:02:37.5]} 11. c3 {[%clk 0:03:01.2]}
11... Qb6 {[%clk 0:02:34.9]} 12. Qc2 {[%clk 0:02:59.3]} 12... h6 {[%clk
0:02:31.6]} 13. Rad1 {[%clk 0:02:57.4]} 13... Rd8 {[%clk 0:02:26.4]} 14. h3
{[%clk 0:02:41.2]} 14... Bd7 {[%clk 0:02:25.9]} 15. Nxf6+ {[%clk 0:02:39.7]}
15... Bxf6 {[%clk 0:02:24.6]} 16. Bh7+ {[%clk 0:02:40.2]} 16... Kh8 {[%clk
0:02:23.8]} 17. Be4 {[%clk 0:02:40.8]} 17... Be8 {[%clk 0:02:20.2]} 18. Nd2
{[%clk 0:02:21.8]} 18... e5 {[%clk 0:01:59.5]} 19. Be3 {[%clk 0:02:17]} 19...
Qc7 {[%clk 0:01:59.8]} 20. Bd3 {[%clk 0:02:03]} 20... Rac8 {[%clk 0:01:48.1]}
21. Nc4 {[%clk 0:01:58.4]} 21... b5 {[%clk 0:01:38.1]} 22. Bb6 {[%clk
0:01:39.6]} 22... bxc4 {[%clk 0:01:26]} 23. Bxc7 {[%clk 0:01:38.1]} 23... cxd3
{[%clk 0:01:26.4]} 24. Rxd3 {[%clk 0:01:35]} 24... Rxc7 {[%clk 0:01:19.5]} 25.
Rxd8 {[%clk 0:01:34.4]} 25... Bxd8 {[%clk 0:01:18.3]} 26. Rd1 {[%clk 0:01:33.7]}
26... Bf6 {[%clk 0:01:13.2]} 27. Qe4 {[%clk 0:01:32.1]} 27... Kg8 {[%clk
0:01:07.8]} 28. Qg4 {[%clk 0:01:17.9]} 28... g6 {[%clk 0:01:04.2]} 29. Qe2
{[%clk 0:00:57.1]} 29... Ra7 {[%clk 0:00:56.1]} 30. Qc4 {[%clk 0:00:43.1]} 30...
Kg7 {[%clk 0:00:50.8]} 31. Rd6 {[%clk 0:00:41.4]} 31... Ne7 {[%clk 0:00:44.4]}
32. Qc5 {[%clk 0:00:35.1]} 32... Rd7 {[%clk 0:00:36.4]} 33. Rxd7 {[%clk
0:00:34.3]} 33... Bxd7 {[%clk 0:00:36.6]} 34. c4 {[%clk 0:00:32.2]} 34... e4
{[%clk 0:00:34.9]} 35. b4 {[%clk 0:00:31.9]} 35... Nf5 {[%clk 0:00:27.3]} 36. b5
{[%clk 0:00:29.8]} 36... axb5 {[%clk 0:00:27.1]} 37. cxb5 {[%clk 0:00:30.7]}
37... Bd4 {[%clk 0:00:23.8]} 38. Qb4 {[%clk 0:00:30.8]} 38... e3 {[%clk
0:00:21.5]} 39. fxe3 {[%clk 0:00:31.5]} 39... Bxe3+ {[%clk 0:00:21.5]} 40. Kh2
{[%clk 0:00:32.1]} 40... h5 {[%clk 0:00:16.5]} 41. a4 {[%clk 0:00:28.6]} 41...
g5 {[%clk 0:00:11.9]} 42. b6 {[%clk 0:00:26.8]} 42... h4 {[%clk 0:00:02.6]} 43.
b7 {[%clk 0:00:25.5]} 43... Bf4+ {[%clk 0:00:01.1]} 44. Qxf4 {[%clk 0:00:25.8]}
44... gxf4 {[%clk 0:00:01.3]} 45. b8=Q {[%clk 0:00:26.7]} 1-0

[Event "Late-Titled-Tuesday-Blitz-June-18-2024"]
[Site "Chess.com"]
[Date "2024.06.18"]
[Round "4"]
[White "JoakimVonAnd"]
[Black "Artem_Koval"]
[Result "1-0"]
[WhiteElo "2751"]
[BlackElo "2558"]
[TimeControl "180+1"]
[EndTime "14:41:48 PDT"]
[Termination "JoakimVonAnd won by checkmate"]

1. d4 {[%clk 0:03:00.9]} 1... Nf6 {[%clk 0:02:59.3]} 2. c4 {[%clk 0:03:01.1]}
2... e6 {[%clk 0:02:59.2]} 3. Nc3 {[%clk 0:03:01.7]} 3... d5 {[%clk 0:02:58.7]}
4. cxd5 {[%clk 0:03:01.2]} 4... exd5 {[%clk 0:02:58.9]} 5. Bg5 {[%clk
0:03:01.4]} 5... c6 {[%clk 0:02:59.1]} 6. e3 {[%clk 0:03:01.7]} 6... Be7 {[%clk
0:02:59.6]} 7. Bd3 {[%clk 0:03:02]} 7... h6 {[%clk 0:02:58.2]} 8. Bh4 {[%clk
0:03:01.5]} 8... O-O {[%clk 0:02:57.9]} 9. Nge2 {[%clk 0:03:01.1]} 9... Nbd7
{[%clk 0:02:56.3]} 10. O-O {[%clk 0:03:01.2]} 10... Re8 {[%clk 0:02:57]} 11. f3
{[%clk 0:02:58.2]} 11... b5 {[%clk 0:02:39.7]} 12. a3 {[%clk 0:02:52.1]} 12...
a5 {[%clk 0:02:32.1]} 13. e4 {[%clk 0:02:44.4]} 13... dxe4 {[%clk 0:02:27.2]}
14. fxe4 {[%clk 0:02:44.4]} 14... Nxe4 {[%clk 0:02:22]} 15. Bxe4 {[%clk
0:02:09]} 15... Bxh4 {[%clk 0:02:21.3]} 16. Bxc6 {[%clk 0:02:09.2]} 16... Rb8
{[%clk 0:02:11]} 17. Bxb5 {[%clk 0:01:53.8]} 17... Bg5 {[%clk 0:01:16]} 18. Ng3
{[%clk 0:01:28.2]} 18... Rf8 {[%clk 0:00:55]} 19. Nge4 {[%clk 0:01:26]} 19...
Be7 {[%clk 0:00:47.9]} 20. Bc4 {[%clk 0:00:43.7]} 20... Rxb2 {[%clk 0:00:39]}
21. d5 {[%clk 0:00:36.9]} 21... Nf6 {[%clk 0:00:28.9]} 22. d6 {[%clk 0:00:33.5]}
22... Nxe4 {[%clk 0:00:28.9]} 23. Nxe4 {[%clk 0:00:33.4]} 23... Bg5 {[%clk
0:00:24.9]} 24. Nxg5 {[%clk 0:00:27.3]} 24... Qxg5 {[%clk 0:00:24.2]} 25. Qd5
{[%clk 0:00:21.8]} 25... Qg6 {[%clk 0:00:20]} 26. Ra2 {[%clk 0:00:16.8]} 26...
Bb7 {[%clk 0:00:16.1]} 27. Qxf7+ {[%clk 0:00:12.3]} 27... Rxf7 {[%clk
0:00:15.3]} 28. Rxb2 {[%clk 0:00:12.3]} 28... Qxd6 {[%clk 0:00:09.6]} 29. Bxf7+
{[%clk 0:00:12]} 29... Kh7 {[%clk 0:00:07.6]} 30. Rxb7 {[%clk 0:00:12.1]} 30...
Qxa3 {[%clk 0:00:07.9]} 31. Bd5 {[%clk 0:00:08.7]} 31... h5 {[%clk 0:00:07]} 32.
Be4+ {[%clk 0:00:08.1]} 32... Kh6 {[%clk 0:00:07]} 33. Rb6+ {[%clk 0:00:08.1]}
33... Kg5 {[%clk 0:00:01.9]} 34. Rg6+ {[%clk 0:00:07.8]} 34... Kh4 {[%clk
0:00:02.3]} 35. g3+ {[%clk 0:00:07.9]} 35... Kh3 {[%clk 0:00:02.7]} 36. Bg2#
{[%clk 0:00:07.9]} 1-0